bitfinex/quotes_BTCUSD_20241022
["timestamp","ask_amount","ask_price","bid_price","bid_amount"]
[1729562674668,0.000838,67611.0,67610.0,0.3318657]
[1729562674867,0.000838,67611.0,67610.0,0.47882485]
[1729562675062,0.000838,67611.0,67610.0,0.47982485]
[1729562675551,0.000838,67611.0,67610.0,0.3308657]
[1729562675777,0.000838,67611.0,67610.0,0.3298657]
[1729562676007,0.000838,67611.0,67610.0,0.3308657]
[1729562676869,0.000838,67611.0,67610.0,0.3318657]
[1729562677342,0.000838,67611.0,67610.0,0.60003891]
[1729562677578,0.000838,67611.0,67610.0,0.60503891]
[1729562678169,0.000838,67611.0,67610.0,0.60403891]
[1729562678378,0.000838,67611.0,67610.0,0.60303891]
[1729562678588,0.000838,67611.0,67610.0,0.60503891]
[1729562678745,0.000838,67611.0,67610.0,0.75399806]
[1729562679961,0.000838,67611.0,67610.0,0.60503891]
[1729562682263,0.000838,67611.0,67610.0,0.55273794]
[1729562682931,0.000838,67611.0,67610.0,0.54773794]
[1729562683155,0.000838,67611.0,67610.0,0.4318657]
[1729562684031,0.000838,67611.0,67610.0,0.4088657]
[1729562684235,0.083638,67611.0,67610.0,0.4088657]
[1729562686807,0.083638,67611.0,67610.0,0.3088657]
[1729562687256,0.083638,67611.0,67610.0,0.29886615]
[1729562687477,0.175038,67611.0,67610.0,0.29886615]
[1729562687962,0.175038,67611.0,67610.0,0.15095915]
[1729562688165,0.175038,67611.0,67610.0,0.14995915]
[1729562688403,0.175038,67611.0,67610.0,0.29686615]
[1729562688631,0.175038,67611.0,67610.0,0.30186615]
[1729562688857,0.175038,67611.0,67610.0,0.29686615]
[1729562689704,0.176038,67611.0,67610.0,0.30286615]
[1729562690120,0.175038,67611.0,67610.0,0.29686615]
[1729562690767,0.176038,67611.0,67610.0,0.29986615]
[1729562691394,0.177038,67611.0,67610.0,0.30286615]
[1729562691639,0.176038,67611.0,67610.0,0.29986615]
[1729562692780,0.177038,67611.0,67610.0,0.31386615]
[1729562700239,0.085638,67611.0,67610.0,0.42789502]
[1729562700809,0.002838,67611.0,67610.0,0.31386615]
[1729562701269,0.001838,67611.0,67610.0,0.31086615]
[1729562701739,0.002838,67611.0,67610.0,0.32486615]
[1729562702185,0.001838,67611.0,67610.0,0.31086615]
[1729562702397,0.001838,67611.0,67610.0,0.32486615]
[1729562705119,0.001838,67611.0,67610.0,0.31086615]
[1729562705323,0.001838,67611.0,67610.0,0.32486615]
[1729562705560,0.000838,67611.0,67610.0,0.31086615]
[1729562706908,0.000838,67611.0,67610.0,0.32486615]
[1729562707348,0.000838,67611.0,67610.0,0.43894994]
[1729562708382,0.000838,67611.0,67610.0,0.32486615]
[1729562709717,0.000838,67611.0,67610.0,0.31086615]
[1729562709925,0.000838,67611.0,67610.0,0.29686615]
[1729562710423,0.000838,67611.0,67610.0,0.29786615]
[1729562711714,0.000838,67611.0,67610.0,0.30889217]
[1729562711920,0.000838,67611.0,67610.0,0.30989217]
[1729562714164,0.000838,67611.0,67610.0,0.44289172]
[1729562714854,0.000838,67611.0,67610.0,0.447892]
[1729562715093,0.000838,67611.0,67610.0,0.5183657]
[1729562715315,0.000838,67611.0,67610.0,0.53039571]
[1729562716014,0.000838,67611.0,67610.0,0.52939571]
[1729562716454,0.000838,67611.0,67610.0,0.67551973]
[1729562716673,0.000838,67611.0,67610.0,0.53039571]
[1729562719332,0.000838,67611.0,67610.0,0.62909571]
[1729562721513,0.000838,67611.0,67610.0,0.54659571]
[1729562725905,0.000838,67611.0,67610.0,0.54859571]
[1729562726176,0.000838,67611.0,67610.0,0.5355657]
[1729562726354,0.000838,67611.0,67610.0,0.54659256]
[1729562726571,0.000838,67611.0,67610.0,0.56281173]
[1729562726779,0.000838,67611.0,67610.0,0.56081173]
[1729562727011,0.04429,67636.0,67634.0,0.1912]
[1729562727274,0.04429,67636.0,67635.0,0.4829593]
[1729562727517,0.000838,67646.0,67643.0,0.28083355]
[1729562727738,0.04429,67652.0,67645.0,0.13799955]
[1729562727979,0.04507096,67666.0,67653.0,0.18081255]
[1729562728203,0.082637,67666.0,67653.0,0.3297717]
[1729562728437,0.000837,67666.0,67653.0,0.45055112]
[1729562728857,0.000837,67666.0,67653.0,0.46154063]
[1729562729081,0.000837,67666.0,67653.0,0.34076121]
[1729562729279,0.000837,67666.0,67653.0,0.3297717]
[1729562729899,0.000837,67666.0,67653.0,0.3307717]
[1729562730352,0.000837,67666.0,67653.0,0.49970253]
[1729562731631,0.000837,67666.0,67653.0,0.51133308]
[1729562732965,0.000837,67666.0,67653.0,0.17258925]
[1729562733171,0.000837,67666.0,67653.0,0.1609587]
[1729562733405,0.0786,67655.0,67653.0,0.1609587]
[1729562733650,0.0903,67664.0,67653.0,0.38208]
[1729562733865,0.000837,67666.0,67653.0,0.38208]
[1729562733866,0.000837,67666.0,67653.0,0.529893]
[1729562734282,0.000837,67666.0,67653.0,0.54113516]
[1729562734493,0.000837,67666.0,67653.0,0.51094469]
[1729562735604,5.23476253,67656.0,67655.0,0.16280755]
[1729562735844,5.218297,67656.0,67655.0,0.4347667]
[1729562736058,5.218297,67656.0,67655.0,0.56491262]
[1729562736299,5.218297,67656.0,67655.0,0.57585785]
[1729562736520,5.218297,67656.0,67655.0,0.57807543]
[1729562736715,5.218297,67656.0,67655.0,0.57806856]
[1729562737132,5.218297,67656.0,67655.0,0.57906856]
[1729562737348,5.16695614,67656.0,67655.0,0.5721302]
[1729562737563,5.16695614,67656.0,67655.0,0.6739302]
[1729562738025,5.16695614,67656.0,67655.0,0.67171262]
[1729562738454,5.16695614,67656.0,67655.0,0.68264636]
[1729562738693,5.16695614,67656.0,67655.0,0.68464636]
[1729562738948,5.16695614,67656.0,67655.0,0.68364636]
[1729562739418,5.16695614,67656.0,67655.0,0.4679332]
[1729562739656,5.16695614,67656.0,67655.0,0.4529332]
[1729562739882,5.16695614,67656.0,67655.0,0.42399946]
[1729562740098,5.16695614,67656.0,67655.0,0.41799946]
[1729562740321,5.16695614,67656.0,67655.0,0.42621711]
[1729562740535,5.16695614,67656.0,67655.0,0.42221711]
[1729562740968,5.16695614,67656.0,67655.0,0.44521711]
[1729562741638,5.16695614,67656.0,67655.0,0.44321711]
[1729562741864,5.13895614,67656.0,67655.0,0.75685153]
[1729562742086,5.13895614,67656.0,67655.0,0.70406289]
[1729562742523,5.13895614,67656.0,67655.0,0.70306289]
[1729562742811,5.13895614,67656.0,67655.0,0.70084524]
[1729562743042,5.13895614,67656.0,67655.0,0.54609946]
[1729562743246,5.13895614,67656.0,67655.0,0.44699946]
[1729562743689,5.13895614,67656.0,67655.0,0.44799946]
[1729562744141,5.13978214,67656.0,67655.0,0.45021704]
[1729562744360,5.13978214,67656.0,67655.0,0.44799946]
[1729562744809,5.13978214,67656.0,67655.0,0.44699946]
[1729562745484,5.13978214,67656.0,67655.0,0.44799946]
[1729562745698,5.13978214,67656.0,67655.0,0.44699946]
[1729562746142,5.13978214,67656.0,67655.0,0.44799946]
[1729562747023,5.13978214,67656.0,67655.0,0.44699946]
[1729562748129,5.13978214,67656.0,67655.0,0.59842647]
[1729562748571,5.13978214,67656.0,67655.0,0.50714946]
[1729562749020,5.13978214,67656.0,67655.0,0.68508029]
[1729562750183,5.13978214,67656.0,67655.0,0.51714946]
[1729562753769,5.13978214,67656.0,67655.0,0.86398029]
[1729562754907,5.13978214,67656.0,67655.0,1.56498029]
[1729562755153,5.13978214,67656.0,67655.0,1.71393944]
[1729562755368,5.07081406,67656.0,67655.0,1.71293944]
[1729562755607,5.07081406,67656.0,67655.0,1.71393944]
[1729562755843,5.07081406,67656.0,67655.0,1.71493944]
[1729562756069,5.07081406,67656.0,67655.0,1.71293944]
[1729562756292,5.07081406,67656.0,67655.0,1.71359144]
[1729562756986,5.07081406,67656.0,67655.0,1.72122635]
[1729562757238,5.07081406,67656.0,67655.0,1.72322635]
[1729562757465,4.96395901,67656.0,67655.0,1.89115718]
[1729562757693,4.9158954,67656.0,67655.0,1.89115718]
[1729562758164,4.88630781,67656.0,67655.0,1.89115718]
[1729562758385,4.88630781,67656.0,67655.0,1.72322635]
[1729562758612,4.88630781,67656.0,67655.0,1.72122635]
[1729562759742,4.88630781,67656.0,67655.0,1.4689672]
[1729562761119,4.88630781,67656.0,67655.0,1.4919672]
[1729562761601,4.88630781,67656.0,67655.0,1.43254376]
[1729562761831,4.88630781,67656.0,67655.0,1.38673229]
[1729562763917,4.88630781,67656.0,67655.0,0.68673229]
[1729562764740,4.88630781,67656.0,67655.0,0.79382634]
[1729562765230,4.88630781,67656.0,67655.0,0.68673229]
[1729562765469,4.88630781,67656.0,67655.0,0.73257287]
[1729562765930,4.88630781,67656.0,67655.0,0.68673229]
[1729562767156,4.73165094,67656.0,67655.0,1.02266312]
[1729562767360,4.73165094,67656.0,67655.0,1.22246087]
[1729562767722,4.64065455,67656.0,67655.0,1.22446087]
[1729562767949,4.64065455,67656.0,67655.0,1.05653004]
[1729562768087,4.64065455,67656.0,67655.0,1.05874748]
[1729562768367,4.64065455,67656.0,67655.0,1.08316087]
[1729562768368,1.73642022,67656.0,67655.0,1.08316087]
[1729562768536,0.0793,67699.0,67671.0,0.02699955]
[1729562768735,0.0793,67699.0,67671.0,0.61266253]
[1729562768976,0.0793,67699.0,67671.0,0.62571548]
[1729562770162,0.0793,67699.0,67671.0,0.62671548]
[1729562770392,0.08811001,67703.0,67699.0,0.170712]
[1729562770627,0.08811001,67703.0,67699.0,0.31967115]
[1729562770846,0.08811001,67703.0,67699.0,0.34058038]
[1729562771924,0.08811001,67703.0,67699.0,0.35458038]
[1729562772210,0.16797083,67700.0,67699.0,0.17386883]
[1729562772865,0.34517083,67700.0,67699.0,0.17386883]
[1729562773296,0.34517083,67700.0,67699.0,0.18786883]
[1729562776354,0.51310166,67700.0,67699.0,0.18786883]
[1729562777678,0.51310166,67700.0,67699.0,0.17695915]
[1729562778076,0.51310166,67700.0,67699.0,0.18773512]
[1729562778324,0.34517083,67700.0,67699.0,0.18773512]
[1729562778760,0.34517083,67700.0,67699.0,0.33544712]
[1729562778987,0.51310166,67700.0,67699.0,0.18773512]
[1729562779200,0.34517083,67700.0,67699.0,0.18773512]
[1729562779619,0.17724,67700.0,67699.0,0.33544712]
[1729562779886,0.34517083,67700.0,67699.0,0.18773512]
[1729562780102,0.34517083,67700.0,67699.0,0.33544712]
[1729562780528,0.34517083,67700.0,67699.0,0.18773512]
[1729562781390,0.34599583,67700.0,67699.0,0.18773512]
[1729562781660,0.51392666,67700.0,67699.0,0.18773512]
[1729562783595,0.51392666,67700.0,67699.0,0.17695915]
[1729562783805,0.51392666,67700.0,67699.0,0.18772338]
[1729562784668,0.16793083,67688.0,67680.0,0.22312298]
[1729562784907,0.1783,67689.0,67687.0,0.22312298]
[1729562785122,0.1783,67689.0,67681.0,0.00999955]
[1729562785552,0.1783,67689.0,67682.0,0.44445815]
[1729562785758,0.1783,67689.0,67684.0,0.147744]
[1729562785970,0.1783,67689.0,67685.0,0.14895915]
[1729562786606,0.16793083,67686.0,67685.0,0.14895915]
[1729562787520,0.16793083,67686.0,67685.0,0.15995915]
[1729562788184,0.16793083,67686.0,67685.0,0.16895915]
[1729562788434,0.16781266,67686.0,67685.0,0.15995915]
[1729562788668,0.16781266,67686.0,67685.0,0.29670215]
[1729562788884,0.16881266,67686.0,67685.0,0.30970215]
[1729562789088,0.16881266,67686.0,67685.0,0.29770215]
[1729562789337,0.16981266,67686.0,67685.0,0.31070215]
[1729562789875,0.16881266,67686.0,67685.0,0.30970215]
[1729562790306,0.16981266,67686.0,67685.0,0.31070215]
[1729562792198,0.16981266,67686.0,67685.0,0.32051601]
[1729562792632,0.16981266,67686.0,67685.0,0.17277301]
[1729562793487,0.16981266,67686.0,67685.0,0.17771901]
[1729562794613,0.16981266,67686.0,67685.0,0.32546201]
[1729562795014,0.16981266,67686.0,67685.0,0.34846201]
[1729562795512,0.002,67686.0,67685.0,0.45846156]
[1729562797308,0.001,67686.0,67685.0,0.45746156]
[1729562797964,0.16793083,67692.0,67691.0,0.14773]
[1729562798206,0.16793083,67692.0,67691.0,0.14895915]
[1729562798413,0.16793083,67692.0,67691.0,0.15876423]
[1729562799247,0.16793083,67692.0,67691.0,0.17276423]
[1729562799689,0.16793083,67692.0,67691.0,0.18676423]
[1729562801534,0.0816,67695.0,67694.0,0.147723]
[1729562801762,0.0816,67695.0,67694.0,0.14895915]
[1729562801992,0.0816,67695.0,67694.0,0.15872074]
[1729562802841,0.0816,67695.0,67694.0,0.18572074]
[1729562803516,0.10947956,67695.0,67694.0,0.18572074]
[1729562803912,0.0816,67695.0,67694.0,0.18572074]
[1729562804324,0.082425,67695.0,67694.0,0.18572074]
[1729562810242,0.082425,67695.0,67694.0,0.17272074]
[1729562810461,0.082425,67695.0,67694.0,0.18572074]
[1729562811055,0.082425,67695.0,67694.0,0.31944374]
[1729562811273,0.082425,67695.0,67694.0,0.17172074]
[1729562811508,0.082425,67695.0,67694.0,0.33344374]
[1729562811713,0.082425,67695.0,67694.0,0.31944374]
[1729562811925,0.082425,67695.0,67694.0,0.33344374]
[1729562812147,0.082425,67695.0,67694.0,0.18572074]
[1729562812362,0.082425,67695.0,67694.0,0.17272074]
[1729562812582,0.082425,67695.0,67694.0,0.18672074]
[1729562813061,0.082425,67695.0,67694.0,0.33444374]
[1729562813264,0.082425,67695.0,67694.0,0.17272074]
[1729562813679,0.082425,67695.0,67694.0,0.18672074]
[1729562814213,0.082425,67695.0,67694.0,0.15872074]
[1729562814646,0.082425,67695.0,67694.0,0.32044374]
[1729562814848,0.082425,67695.0,67694.0,0.15872074]
[1729562815058,0.13415017,67695.0,67694.0,0.17272074]
[1729562815482,0.082425,67695.0,67694.0,0.18672074]
[1729562824985,0.082425,67695.0,67694.0,0.33444374]
[1729562825743,0.082425,67695.0,67694.0,0.18672074]
[1729562826001,0.082425,67695.0,67694.0,0.33444374]
[1729562826225,0.082425,67695.0,67694.0,0.18672074]
[1729562826825,0.082425,67695.0,67694.0,0.33444374]
[1729562827235,0.082425,67695.0,67694.0,0.18672074]
[1729562829168,0.082425,67695.0,67694.0,0.33444374]
[1729562829622,0.082425,67695.0,67694.0,0.18672074]
[1729562830057,0.082425,67695.0,67694.0,0.33444374]
[1729562830271,0.082425,67695.0,67694.0,0.18672074]
[1729562830710,0.082425,67695.0,67694.0,0.17272074]
[1729562830918,0.082425,67695.0,67694.0,0.18672074]
[1729562831111,0.082425,67695.0,67694.0,0.32044374]
[1729562831548,0.082425,67695.0,67694.0,0.18672074]
[1729562832415,0.19806506,67695.0,67694.0,0.18672074]
[1729562833397,0.19806506,67695.0,67694.0,0.33444374]
[1729562833555,0.19806506,67695.0,67694.0,0.18672074]
[1729562833760,0.19806506,67695.0,67694.0,0.33444374]
[1729562835431,0.19806506,67695.0,67694.0,0.18672074]
[1729562836922,0.19806506,67695.0,67694.0,0.03776159]
[1729562836923,0.38513926,67695.0,67694.0,0.03776159]
[1729562837135,0.56192612,67695.0,67694.0,0.03776159]
[1729562837348,0.72551738,67695.0,67694.0,0.028]
[1729562837553,0.86851388,67695.0,67694.0,0.028]
[1729562837767,0.005,67690.0,67686.0,0.00165]
[1729562837979,0.12064006,67690.0,67689.0,0.22312298]
[1729562838190,0.18711685,67690.0,67687.0,0.00972838]
[1729562838403,0.23988499,67689.0,67687.0,0.00972838]
[1729562838610,0.23988499,67689.0,67686.0,0.15060915]
[1729562838611,0.04431488,67688.0,67686.0,0.15060915]
[1729562838823,0.04431488,67688.0,67687.0,0.22312298]
[1729562839057,0.1734,67689.0,67686.0,0.16060915]
[1729562839290,0.11564006,67687.0,67686.0,0.15939]
[1729562839521,0.11564006,67687.0,67686.0,0.00165]
[1729562839738,0.11564006,67687.0,67686.0,0.159391]
[1729562841045,0.11564006,67687.0,67686.0,0.158391]
[1729562841261,0.11764006,67687.0,67686.0,0.149391]
[1729562841480,0.11764006,67687.0,67686.0,0.150391]
[1729562841697,0.11564006,67687.0,67686.0,0.29935015]
[1729562842121,0.11764006,67687.0,67686.0,0.30035015]
[1729562843308,0.11764006,67687.0,67686.0,0.15260915]
[1729562843771,0.14096807,67687.0,67686.0,0.15260915]
[1729562844012,0.31406807,67687.0,67686.0,0.15260915]
[1729562844214,0.31406807,67687.0,67686.0,0.16045105]
[1729562844581,0.29074006,67687.0,67686.0,0.16045105]
[1729562847232,0.48779316,67687.0,67686.0,0.0114919]
[1729562847448,0.60843322,67687.0,67686.0,0.00365]
[1729562847687,0.51495071,67687.0,67686.0,0.00365]
[1729562847885,0.65704438,67687.0,67686.0,0.00365]
[1729562848086,0.58857173,67687.0,67686.0,0.00265]
[1729562848302,0.44083373,67687.0,67686.0,0.00165]
[1729562848550,0.50825841,67687.0,67686.0,0.00365]
[1729562848748,0.77363647,67687.0,67686.0,0.00365]
[1729562848960,0.75204026,67687.0,67686.0,0.00165]
[1729562849159,0.7520406,67687.0,67686.0,0.00165]
[1729562849384,0.7520406,67687.0,67686.0,0.00965]
[1729562849787,0.58857173,67687.0,67686.0,0.00965]
[1729562850200,0.6099105,67687.0,67686.0,0.00965]
[1729562850349,0.72555056,67687.0,67686.0,0.00965]
[1729562850793,0.72655056,67687.0,67686.0,0.01965]
[1729562850966,0.6109105,67687.0,67686.0,0.01965]
[1729562851190,0.69943438,67687.0,67686.0,0.01965]
[1729562851947,0.6109105,67687.0,67686.0,0.01965]
[1729562852682,0.44747806,67687.0,67686.0,0.01965]
[1729562853247,0.51384156,67687.0,67686.0,0.01965]
[1729562853447,0.57788326,67687.0,67686.0,0.01965]
[1729562853852,0.51384156,67687.0,67686.0,0.01965]
[1729562854115,0.44747806,67687.0,67686.0,0.01965]
[1729562855490,0.49170175,67687.0,67686.0,0.01965]
[1729562855723,0.44747806,67687.0,67686.0,0.01965]
[1729562856666,0.49169696,67687.0,67686.0,0.01965]
[1729562858905,0.49168891,67687.0,67686.0,0.01965]
[1729562860490,0.44747806,67687.0,67686.0,0.01965]
[1729562860791,0.49168891,67687.0,67686.0,0.01965]
[1729562861804,0.58363801,67687.0,67686.0,0.01965]
[1729562862234,0.58563801,67687.0,67686.0,0.01965]
[1729562862436,0.63067165,67687.0,67686.0,0.01965]
[1729562862646,0.62867165,67687.0,67686.0,0.01965]
[1729562863280,0.63067165,67687.0,67686.0,0.01965]
[1729562863484,0.58646401,67687.0,67686.0,0.01965]
[1729562863745,0.63066834,67687.0,67686.0,0.01965]
[1729562864010,0.58646401,67687.0,67686.0,0.01965]
[1729562864220,0.58446401,67687.0,67686.0,0.01965]
[1729562864618,0.58646401,67687.0,67686.0,0.01965]
[1729562865027,0.63066738,67687.0,67686.0,0.01965]
[1729562865232,0.58646401,67687.0,67686.0,0.01965]
[1729562865445,0.58446401,67687.0,67686.0,0.01965]
[1729562866131,0.62866636,67687.0,67686.0,0.01965]
[1729562866319,0.62866626,67687.0,67686.0,0.01965]
[1729562866466,0.58446401,67687.0,67686.0,0.01965]
[1729562866863,0.62866528,67687.0,67686.0,0.01965]
[1729562867074,0.70210407,67687.0,67686.0,0.01965]
[1729562867285,0.329241,67686.0,67685.0,0.00165]
[1729562867505,0.45669438,67686.0,67685.0,0.00165]
[1729562867723,0.45669438,67686.0,67679.0,0.00165]
[1729562867724,0.157754,67680.0,67679.0,0.00165]
[1729562867917,0.44289406,67680.0,67679.0,0.00165]
[1729562868337,0.55853412,67680.0,67679.0,0.00165]
[1729562868543,0.70749327,67680.0,67679.0,0.00165]
[1729562868978,0.70949327,67680.0,67679.0,0.00165]
[1729562869204,0.47621315,67680.0,67679.0,0.00165]
[1729562869399,0.70749327,67680.0,67679.0,0.00165]
[1729562870631,0.70949327,67680.0,67679.0,0.00765]
[1729562879679,0.75371305,67680.0,67679.0,0.00765]
[1729562880103,0.52243293,67680.0,67679.0,0.00765]
[1729562880384,0.75371305,67680.0,67679.0,0.00765]
[1729562880961,0.52243293,67680.0,67679.0,0.00765]
[1729562881185,0.75371305,67680.0,67679.0,0.00765]
[1729562881571,0.70949327,67680.0,67679.0,0.00765]
[1729562882539,0.56053412,67680.0,67679.0,0.00765]
[1729562884105,0.56253412,67680.0,67679.0,0.00765]
[1729562884354,0.56053412,67680.0,67679.0,0.00765]
[1729562891668,0.329254,67680.0,67679.0,0.00765]
[1729562891889,0.56053412,67680.0,67679.0,0.00765]
[1729562892112,0.70610898,67680.0,67679.0,0.00765]
[1729562892358,0.47482886,67680.0,67679.0,0.00765]
[1729562892596,0.002,67680.0,67679.0,0.00765]
[1729562892820,0.11764006,67680.0,67679.0,0.30436515]
[1729562893288,0.11764006,67680.0,67679.0,0.31242419]
[1729562893739,0.11664006,67680.0,67679.0,0.31242419]
[1729562894236,0.11664006,67680.0,67679.0,0.31142419]
[1729562894683,0.11664006,67680.0,67679.0,0.32542419]
[1729562899128,0.001,67680.0,67679.0,0.35842374]
[1729562900073,0.11564006,67682.0,67679.0,0.20566774]
[1729562900300,0.11564006,67682.0,67681.0,0.147751]
[1729562900505,0.11564006,67682.0,67681.0,0.29671015]
[1729562900729,0.000826,67685.0,67684.0,0.147745]
[1729562900953,0.000826,67685.0,67684.0,0.29670415]
[1729562901172,0.000826,67685.0,67684.0,0.30476319]
[1729562902071,0.000826,67685.0,67684.0,0.39606319]
[1729562902303,0.000826,67685.0,67684.0,0.41006319]
[1729562902775,0.000826,67685.0,67684.0,0.43306319]
[1729562904130,0.001826,67685.0,67684.0,0.43006274]
[1729562904572,0.001826,67685.0,67684.0,0.43106274]
[1729562905029,0.001826,67685.0,67684.0,0.65418572]
[1729562905286,0.001826,67685.0,67684.0,0.50726274]
[1729562905967,0.001826,67685.0,67684.0,0.50626274]
[1729562906385,0.002826,67685.0,67684.0,0.50726274]
[1729562906610,0.002826,67685.0,67684.0,0.50626274]
[1729562906845,0.001826,67685.0,67684.0,0.72938572]
[1729562907067,0.001826,67685.0,67684.0,0.60726274]
[1729562907068,0.002826,67685.0,67684.0,0.60726274]
[1729562907296,0.002826,67685.0,67684.0,0.59726319]
[1729562907999,0.001826,67685.0,67684.0,0.59626319]
[1729562908229,0.002826,67685.0,67684.0,0.82038617]
[1729562908450,0.002826,67685.0,67684.0,0.61226274]
[1729562908877,0.001826,67685.0,67684.0,0.61126274]
[1729562909112,0.002826,67685.0,67684.0,0.61226274]
[1729562910951,0.000826,67687.0,67686.0,0.02499955]
[1729562911177,0.000826,67687.0,67686.0,0.67839383]
[1729562911397,0.000826,67687.0,67686.0,0.73586392]
[1729562911857,0.000826,67687.0,67686.0,0.68332593]
[1729562912309,0.001826,67687.0,67686.0,0.73686392]
[1729562912537,0.00164818,67687.0,67686.0,0.73686392]
[1729562912762,0.00164818,67687.0,67686.0,0.73886392]
[1729562913474,0.00164818,67687.0,67686.0,0.73986392]
[1729562913687,0.00164818,67687.0,67686.0,0.74822892]
[1729562913882,0.00164818,67687.0,67686.0,0.69369093]
[1729562914404,0.00164818,67687.0,67686.0,0.70032628]
[1729562914625,0.00164818,67687.0,67686.0,0.75486427]
[1729562915724,0.00164818,67687.0,67686.0,0.75286427]
[1729562915940,0.00164818,67687.0,67686.0,0.70032628]
[1729562916151,0.00164818,67687.0,67686.0,0.75286427]
[1729562916359,0.00164818,67687.0,67686.0,0.75486427]
[1729562916573,0.00064818,67687.0,67686.0,0.75286427]
[1729562917018,0.00064818,67687.0,67686.0,0.75486427]
[1729562917453,1.8e-07,67687.0,67686.0,0.81796634]
[1729562918128,1.8e-07,67687.0,67686.0,0.87162997]
[1729562919491,0.000837,67724.0,67721.0,0.170664]
[1729562919705,0.000837,67724.0,67721.0,0.31962315]
[1729562919913,0.000837,67724.0,67721.0,0.32730825]
[1729562920821,0.000837,67724.0,67721.0,0.34130825]
[1729562923003,0.000837,67724.0,67721.0,0.35530825]
[1729562923242,0.000837,67724.0,67721.0,0.3653078]
[1729562930048,0.000837,67724.0,67721.0,0.4244068]
[1729562930253,0.000837,67724.0,67721.0,0.3653078]
[1729562931192,0.000837,67724.0,67721.0,0.58843078]
[1729562931408,0.000837,67724.0,67721.0,0.3653078]
[1729562933471,0.000837,67724.0,67721.0,0.3423078]
[1729562933682,0.000837,67724.0,67721.0,0.33730825]
[1729562933683,0.29207706,67722.0,67721.0,0.33730825]
[1729562933933,0.29207706,67722.0,67721.0,0.18464425]
[1729562934180,0.29207706,67722.0,67721.0,0.18964425]
[1729562934612,0.29207706,67722.0,67721.0,0.18464425]
[1729562935262,0.29207706,67722.0,67721.0,0.18964425]
[1729562935693,0.29207706,67722.0,67721.0,0.18464425]
[1729562936356,0.29207706,67722.0,67721.0,0.33230825]
[1729562936926,0.29207706,67722.0,67721.0,0.18464425]
[1729562937161,0.29207706,67722.0,67721.0,0.33230825]
[1729562937945,0.29207706,67722.0,67721.0,0.18464425]
[1729562938400,0.29207706,67722.0,67721.0,0.33230825]
[1729562938401,0.176437,67722.0,67721.0,0.33230825]
[1729562939502,0.176437,67722.0,67721.0,0.32941968]
[1729562942392,0.20572841,67722.0,67721.0,0.18175568]
[1729562942612,0.176437,67722.0,67721.0,0.18175568]
[1729562943268,0.176437,67722.0,67721.0,0.16775568]
[1729562943713,0.176437,67722.0,67721.0,0.18069868]
[1729562944603,0.176437,67722.0,67721.0,0.16669868]
[1729562945020,0.176437,67722.0,67721.0,0.17769868]
[1729562945296,0.176437,67722.0,67721.0,0.15869868]
[1729562945539,0.176437,67722.0,67721.0,0.0256281]
[1729562945540,0.49499587,67722.0,67721.0,0.0256281]
[1729562945754,0.49499587,67722.0,67721.0,0.0366281]
[1729562945962,0.49499587,67722.0,67721.0,0.028943]
[1729562946422,0.49499587,67722.0,67721.0,0.015943]
[1729562946639,0.53907369,67722.0,67721.0,0.009943]
[1729562946848,0.53907369,67722.0,67721.0,0.021943]
[1729562947033,0.54107369,67722.0,67721.0,0.021943]
[1729562947444,0.5631126,67722.0,67721.0,0.021943]
[1729562948085,0.5631126,67722.0,67721.0,0.016943]
[1729562948307,0.78306018,67722.0,67721.0,0.004943]
[1729562948528,0.159673,67717.0,67716.0,0.001652]
[1729562948747,0.54448665,67717.0,67716.0,0.001652]
[1729562948968,0.56654657,67717.0,67716.0,0.001652]
[1729562949604,0.50036682,67717.0,67716.0,0.001652]
[1729562950014,0.50036682,67717.0,67716.0,0.004652]
[1729562950219,0.59443643,67717.0,67716.0,0.004652]
[1729562950425,0.75536566,67717.0,67716.0,0.004652]
[1729562950628,0.66129605,67717.0,67716.0,0.004652]
[1729562950880,0.41189632,67717.0,67716.0,0.004652]
[1729562951080,0.34069382,67717.0,67716.0,0.004652]
[1729562951541,0.34069382,67717.0,67716.0,0.01147378]
[1729562951753,0.34069382,67717.0,67716.0,0.00847378]
[1729562952184,0.34069382,67717.0,67716.0,0.001652]
[1729562952393,0.34069382,67717.0,67716.0,0.00847378]
[1729562952881,0.34069382,67717.0,67716.0,0.01147378]
[1729562953085,0.34069382,67717.0,67716.0,0.00847378]
[1729562953314,0.34069382,67717.0,67716.0,0.01447378]
[1729562953768,0.34069382,67717.0,67716.0,0.004652]
[1729562954214,0.34069382,67717.0,67716.0,0.01147378]
[1729562954654,0.34069382,67717.0,67716.0,0.00847378]
[1729562954875,0.34069382,67717.0,67716.0,0.011652]
[1729562955072,0.34069382,67717.0,67716.0,0.021652]
[1729562955298,0.34069382,67717.0,67716.0,0.01847378]
[1729562955516,0.34069382,67717.0,67716.0,0.011652]
[1729562955731,0.34069382,67717.0,67716.0,0.021652]
[1729562956077,0.34069382,67717.0,67716.0,0.02851082]
[1729562956530,0.60064006,67717.0,67716.0,0.021652]
[1729562956747,0.60564006,67717.0,67716.0,0.021652]
[1729562956951,0.6718817,67717.0,67716.0,0.021652]
[1729562957380,0.7687066,67717.0,67716.0,0.021652]
[1729562957586,0.76870024,67717.0,67716.0,0.021652]
[1729562957885,0.77548481,67717.0,67716.0,0.021652]
[1729562958098,0.77748481,67717.0,67716.0,0.021652]
[1729562959212,0.77748481,67717.0,67716.0,0.011652]
[1729562959417,0.661427,67717.0,67716.0,0.010652]
[1729562959632,0.45636932,67717.0,67716.0,0.010652]
[1729562959844,0.42428417,67717.0,67716.0,0.005652]
[1729562960093,0.1729,67717.0,67716.0,0.005652]
[1729562960288,0.16779382,67720.0,67718.0,0.147669]
[1729562960519,0.16779382,67720.0,67719.0,0.29662815]
[1729562960976,0.16779382,67720.0,67719.0,0.30347601]
[1729562962332,0.16779382,67720.0,67719.0,0.31347601]
[1729562963347,0.16779382,67720.0,67719.0,0.32447601]
[1729562964797,0.000837,67722.0,67721.0,0.147664]
[1729562964994,0.000837,67722.0,67721.0,0.29662315]
[1729562965202,0.000837,67722.0,67721.0,0.30347101]
[1729562966166,0.000837,67722.0,67721.0,0.17280701]
[1729562966371,0.01778378,67722.0,67721.0,0.17280701]
[1729562966599,0.000837,67722.0,67721.0,0.32047101]
[1729562968114,0.000837,67722.0,67721.0,0.31247101]
[1729562968327,0.000837,67722.0,67721.0,0.32647101]
[1729562968535,0.000837,67722.0,67721.0,0.31747101]
[1729562968748,0.000837,67722.0,67721.0,0.33147101]
[1729562970472,0.000837,67722.0,67721.0,0.35447101]
[1729562972157,0.000837,67722.0,67721.0,0.25447101]